Workbook

Sheet 102
A1: 附件
A2: 兴义义龙2023年公开选聘城市社区工作者总成绩及进入体检人员名单
A3: 总序号 | B3: 面试准考证号 | C3: 选聘单位 | D3: 单位代码 | E3: 选聘岗位 | F3: 岗位代码 | G3: 笔试成绩 | H3: 面试成绩 | I3: 总成绩 | J3: 是否进入体检 | K3: 备注
A4: 1 | B4: 10101 | C4: 黄草街道办事处 | D4: 1101 | E4: 北门社区 | F4: 01 | G4: 75.50 | H4: 77.67 | I4: =(G4/1.5)*0.6+(H4*0.4) -> 61.27 | J4: 是
A5: 2 | B5: 10102 | C5: 黄草街道办事处 | D5: 1101 | E5: 北门社区 | F5: 01 | G5: 74.50 | H5: 缺考 | I5: 29.80 | J5: 否
A6: 3 | B6: 10103 | C6: 黄草街道办事处 | D6: 1101 | E6: 红旗社区 | F6: 02 | G6: 60.00 | H6: 68.00 | I6: =(G6/1.5)*0.6+(H6*0.4) -> 51.20 | J6: 是
A7: 4 | B7: 10104 | C7: 黄草街道办事处 | D7: 1101 | E7: 红星社区 | F7: 03 | G7: 84.50 | H7: 74.67 | I7: 63.67 | J7: 是
A8: 5 | B8: 10105 | C8: 黄草街道办事处 | D8: 1101 | E8: 建设社区 | F8: 04 | G8: 91.00 | H8: 78.33 | I8: 67.73 | J8: 是
A9: 6 | B9: 10106 | C9: 黄草街道办事处 | D9: 1101 | E9: 建设社区 | F9: 04 | G9: 81.50 | H9: 75.00 | I9: 62.60 | J9: 否
A10: 7 | B10: 10107 | C10: 黄草街道办事处 | D10: 1101 | E10: 街心社区 | F10: 05 | G10: 87.00 | H10: 77.33 | I10: 65.73 | J10: 是
A11: 8 | B11: 10108 | C11: 黄草街道办事处 | D11: 1101 | E11: 老城社区 | F11: 06 | G11: 85.50 | H11: 77.00 | I11: 65.00 | J11: 是
A12: 9 | B12: 10109 | C12: 黄草街道办事处 | D12: 1101 | E12: 老城社区 | F12: 06 | G12: 75.00 | H12: 76.67 | I12: 60.67 | J12: 否
A13: 10 | B13: 10110 | C13: 黄草街道办事处 | D13: 1101 | E13: 盘江社区 | F13: 07 | G13: 85.00 | H13: 74.33 | I13: 63.73 | J13: 是
A14: 11 | B14: 10112 | C14: 黄草街道办事处 | D14: 1101 | E14: 胜利社区 | F14: 08 | G14: 70.00 | H14: 74.33 | I14: 57.73 | J14: 是
A15: 12 | B15: 10111 | C15: 黄草街道办事处 | D15: 1101 | E15: 胜利社区 | F15: 08 | G15: 74.00 | H15: 68.33 | I15: 56.93 | J15: 否
A16: 13 | B16: 10114 | C16: 黄草街道办事处 | D16: 1101 | E16: 向阳社区 | F16: 09 | G16: 83.50 | H16: 79.00 | I16: 65.00 | J16: 是
A17: 14 | B17: 10113 | C17: 黄草街道办事处 | D17: 1101 | E17: 向阳社区 | F17: 09 | G17: 84.00 | H17: 76.00 | I17: 64.00 | J17: 否
A18: 15 | B18: 10115 | C18: 黄草街道办事处 | D18: 1101 | E18: 兴源社区 | F18: 10 | G18: 72.00 | H18: 74.33 | I18: 58.53 | J18: 是
A19: 16 | B19: 10116 | C19: 桔山街道办事处 | D19: 1102 | E19: 峡谷社区 | F19: 01 | G19: 92.00 | H19: 72.67 | I19: 65.87 | J19: 是
A20: 17 | B20: 10117 | C20: 桔山街道办事处 | D20: 1102 | E20: 峡谷社区 | F20: 01 | G20: 76.00 | H20: 80.00 | I20: 62.40 | J20: 否
A21: 18 | B21: 10118 | C21: 桔山街道办事处 | D21: 1102 | E21: 碧云社区 | F21: 03 | G21: 104.50 | H21: 79.00 | I21: 73.40 | J21: 是
A22: 19 | B22: 10119 | C22: 桔山街道办事处 | D22: 1102 | E22: 碧云社区 | F22: 03 | G22: 92.50 | H22: 79.33 | I22: 68.73 | J22: 否
A23: 20 | B23: 10120 | C23: 桔山街道办事处 | D23: 1102 | E23: 丰源社区 | F23: 04 | G23: 89.50 | H23: 77.33 | I23: 66.73 | J23: 是
A24: 21 | B24: 10121 | C24: 桔山街道办事处 | D24: 1102 | E24: 丰源社区 | F24: 04 | G24: 86.50 | H24: 74.33 | I24: 64.33 | J24: 否
A25: 22 | B25: 10201 | C25: 桔山街道办事处 | D25: 1102 | E25: 金桔社区 | F25: 05 | G25: 90.50 | H25: 76.67 | I25: 66.87 | J25: 是
A26: 23 | B26: 10202 | C26: 桔山街道办事处 | D26: 1102 | E26: 金桔社区 | F26: 05 | G26: 63.00 | H26: 66.33 | I26: 51.73 | J26: 否
A27: 24 | B27: 10203 | C27: 桔山街道办事处 | D27: 1102 | E27: 滴水社区 | F27: 06 | G27: 101.00 | H27: 84.67 | I27: 74.27 | J27: 是
A28: 25 | B28: 10204 | C28: 桔山街道办事处 | D28: 1102 | E28: 滴水社区 | F28: 06 | G28: 98.50 | H28: 79.00 | I28: 71.00 | J28: 否
A29: 26 | B29: 10205 | C29: 桔山街道办事处 | D29: 1102 | E29: 笔山社区 | F29: 07 | G29: 94.00 | H29: 缺考 | I29: 37.60 | J29: 否
A30: 27 | B30: 10206 | C30: 桔山街道办事处 | D30: 1102 | E30: 笔山社区 | F30: 07 | G30: 87.50 | H30: 缺考 | I30: 35.00 | J30: 否
A31: 28 | B31: 10208 | C31: 桔山街道办事处 | D31: 1102 | E31: 新场社区 | F31: 08 | G31: 94.00 | H31: 63.67 | I31: =(G31/1.5)*0.6+(H31*0.4) -> 63.07 | J31: 是
A32: 29 | B32: 10207 | C32: 桔山街道办事处 | D32: 1102 | E32: 新场社区 | F32: 08 | G32: 111.50 | H32: 缺考 | I32: 44.60 | J32: 否
A33: 30 | B33: 10209 | C33: 桔山街道办事处 | D33: 1102 | E33: 双朝社区 | F33: 09 | G33: 92.00 | H33: 78.33 | I33: 68.13 | J33: 是
A34: 31 | B34: 10210 | C34: 桔山街道办事处 | D34: 1102 | E34: 双朝社区 | F34: 09 | G34: 90.50 | H34: 74.00 | I34: 65.80 | J34: 否
A35: 32 | B35: 10212 | C35: 桔山街道办事处 | D35: 1102 | E35: 酸枣社区 | F35: 10 | G35: 71.00 | H35: 61.67 | I35: 53.07 | J35: 是
A36: 33 | B36: 10211 | C36: 桔山街道办事处 | D36: 1102 | E36: 酸枣社区 | F36: 10 | G36: 104.00 | H36: 0.00 | I36: 41.60 | J36: 否
A37: 34 | B37: 10213 | C37: 桔山街道办事处 | D37: 1102 | E37: 桔园社区 | F37: 11 | G37: 112.50 | H37: 84.67 | I37: =(G37/1.5)*0.6+(H37*0.4) -> 78.87 | J37: 是
A38: 35 | B38: 10214 | C38: 桔山街道办事处 | D38: 1102 | E38: 桔园社区 | F38: 11 | G38: 99.50 | H38: 76.00 | I38: 70.20 | J38: 否
A39: 36 | B39: 10215 | C39: 桔山街道办事处 | D39: 1102 | E39: 三和社区 | F39: 12 | G39: 94.50 | H39: 66.67 | I39: 64.47 | J39: 是
A40: 37 | B40: 10216 | C40: 桔山街道办事处 | D40: 1102 | E40: 三和社区 | F40: 12 | G40: 85.50 | H40: 缺考 | I40: 34.20 | J40: 否
A41: 38 | B41: 10218 | C41: 桔山街道办事处 | D41: 1102 | E41: 民航社区 | F41: 13 | G41: 85.50 | H41: 70.00 | I41: =(G41/1.5)*0.6+(H41*0.4) -> 62.20 | J41: 是
A42: 39 | B42: 10217 | C42: 桔山街道办事处 | D42: 1102 | E42: 民航社区 | F42: 13 | G42: 101.00 | H42: 缺考 | I42: 40.40 | J42: 否
A43: 40 | B43: 10219 | C43: 丰都街道办事处 | D43: 1103 | E43: 和谐社区 | F43: 01 | G43: 80.00 | H43: 73.00 | I43: 61.20 | J43: 是
A44: 41 | B44: 10220 | C44: 丰都街道办事处 | D44: 1103 | E44: 丰都社区 | F44: 02 | G44: 101.00 | H44: 79.67 | I44: 72.27 | J44: 是
A45: 42 | B45: 10221 | C45: 丰都街道办事处 | D45: 1103 | E45: 丰都社区 | F45: 02 | G45: 92.00 | H45: 81.67 | I45: 69.47 | J45: 否
A46: 43 | B46: 10301 | C46: 丰都街道办事处 | D46: 1103 | E46: 永安社区 | F46: 03 | G46: 100.00 | H46: 81.00 | I46: 72.40 | J46: 是
A47: 44 | B47: 10302 | C47: 丰都街道办事处 | D47: 1103 | E47: 永安社区 | F47: 03 | G47: 93.00 | H47: 79.33 | I47: 68.93 | J47: 否
A48: 45 | B48: 10304 | C48: 坪东街道办事处 | D48: 1104 | E48: 新联社区 | F48: 01 | G48: 97.50 | H48: 84.33 | I48: 72.73 | J48: 是
A49: 46 | B49: 10303 | C49: 坪东街道办事处 | D49: 1104 | E49: 新联社区 | F49: 01 | G49: 97.50 | H49: 缺考 | I49: 39.00 | J49: 否
A50: 47 | B50: 10305 | C50: 坪东街道办事处 | D50: 1104 | E50: 坪东社区 | F50: 02 | G50: 85.00 | H50: 82.00 | I50: 66.80 | J50: 是
A51: 48 | B51: 10306 | C51: 坪东街道办事处 | D51: 1104 | E51: 坪东社区 | F51: 02 | G51: 83.00 | H51: 73.33 | I51: 62.53 | J51: 否
A52: 49 | B52: 10307 | C52: 坪东街道办事处 | D52: 1104 | E52: 幸福社区 | F52: 03 | G52: 96.50 | H52: 83.33 | I52: 71.93 | J52: 是
A53: 50 | B53: 10308 | C53: 坪东街道办事处 | D53: 1104 | E53: 幸福社区 | F53: 03 | G53: 96.00 | H53: 81.33 | I53: 70.93 | J53: 否
A54: 51 | B54: 10309 | C54: 兴泰街道办事处 | D54: 1105 | E54: 富民社区 | F54: 01 | G54: 107.50 | H54: 84.00 | I54: 76.60 | J54: 是
A55: 52 | B55: 10310 | C55: 兴泰街道办事处 | D55: 1105 | E55: 富民社区 | F55: 01 | G55: 85.00 | H55: 88.33 | I55: 69.33 | J55: 否
A56: 53 | B56: 10311 | C56: 兴泰街道办事处 | D56: 1105 | E56: 水库社区 | F56: 02 | G56: 103.00 | H56: 86.00 | I56: 75.60 | J56: 是
A57: 54 | B57: 10312 | C57: 兴泰街道办事处 | D57: 1105 | E57: 水库社区 | F57: 02 | G57: 98.00 | H57: 缺考 | I57: 39.20 | J57: 否
A58: 55 | B58: 10313 | C58: 兴泰街道办事处 | D58: 1105 | E58: 水新社区 | F58: 03 | G58: 99.00 | H58: 75.67 | I58: 69.87 | J58: 是
A59: 56 | B59: 10314 | C59: 兴泰街道办事处 | D59: 1105 | E59: 水新社区 | F59: 03 | G59: 90.50 | H59: 77.67 | I59: 67.27 | J59: 否
A60: 57 | B60: 10315 | C60: 木贾街道办事处 | D60: 1106 | E60: 木贾社区 | F60: 01 | G60: 100.00 | H60: 86.00 | I60: 74.40 | J60: 是
A61: 58 | B61: 10316 | C61: 木贾街道办事处 | D61: 1106 | E61: 木贾社区 | F61: 01 | G61: 100.00 | H61: 85.33 | I61: 74.13 | J61: 否
A62: 59 | B62: 10317 | C62: 木贾街道办事处 | D62: 1106 | E62: 东贡社区 | F62: 02 | G62: 84.50 | H62: 83.00 | I62: 67.00 | J62: 是
A63: 60 | B63: 10318 | C63: 木贾街道办事处 | D63: 1106 | E63: 东兴社区 | F63: 03 | G63: 98.00 | H63: 80.00 | I63: 71.20 | J63: 是
A64: 61 | B64: 10319 | C64: 木贾街道办事处 | D64: 1106 | E64: 东兴社区 | F64: 03 | G64: 89.00 | H64: 74.33 | I64: 65.33 | J64: 否
A65: 62 | B65: 10320 | C65: 下五屯街道办事处 | D65: 1107 | E65: 永康社区 | F65: 01 | G65: 101.50 | H65: 83.67 | I65: 74.07 | J65: 是
A66: 63 | B66: 10321 | C66: 下五屯街道办事处 | D66: 1107 | E66: 永康社区 | F66: 01 | G66: 96.50 | H66: 86.33 | I66: 73.13 | J66: 否
A67: 64 | B67: 10401 | C67: 下五屯街道办事处 | D67: 1107 | E67: 景家屯社区 | F67: 02 | G67: 89.50 | H67: 82.00 | I67: 68.60 | J67: 是
A68: 65 | B68: 10402 | C68: 下五屯街道办事处 | D68: 1107 | E68: 景家屯社区 | F68: 02 | G68: 86.00 | H68: 74.33 | I68: 64.13 | J68: 否
A69: 66 | B69: 10403 | C69: 下五屯街道办事处 | D69: 1107 | E69: 坝佑社区 | F69: 03 | G69: 85.00 | H69: 81.33 | I69: =(G69/1.5)*0.6+(H69*0.4) -> 66.53 | J69: 是
A70: 67 | B70: 10404 | C70: 下五屯街道办事处 | D70: 1107 | E70: 坝佑社区 | F70: 03 | G70: 77.00 | H70: 82.00 | I70: 63.60 | J70: 否
A71: 68 | B71: 10405 | C71: 下五屯街道办事处 | D71: 1107 | E71: 科佐屯社区 | F71: 04 | G71: 95.00 | H71: 76.00 | I71: 68.40 | J71: 是
A72: 69 | B72: 10406 | C72: 下五屯街道办事处 | D72: 1107 | E72: 科佐屯社区 | F72: 04 | G72: 83.50 | H72: 79.67 | I72: 65.27 | J72: 否
A73: 70 | B73: 10407 | C73: 下五屯街道办事处 | D73: 1107 | E73: 庄园社区 | F73: 05 | G73: 86.00 | H73: 78.33 | I73: 65.73 | J73: 是
A74: 71 | B74: 10408 | C74: 下五屯街道办事处 | D74: 1107 | E74: 庄园社区 | F74: 05 | G74: 79.00 | H74: 79.67 | I74: 63.47 | J74: 否
A75: 72 | B75: 10409 | C75: 马岭街道办事处 | D75: 1108 | E75: 马岭社区 | F75: 01 | G75: 78.50 | H75: 缺考 | I75: 31.40 | J75: 否
A76: 73 | B76: 10410 | C76: 马岭街道办事处 | D76: 1108 | E76: 龙盛社区 | F76: 02 | G76: 108.00 | H76: 81.67 | I76: 75.87 | J76: 是
A77: 74 | B77: 10411 | C77: 马岭街道办事处 | D77: 1108 | E77: 龙盛社区 | F77: 02 | G77: 91.00 | H77: 82.00 | I77: 69.20 | J77: 否
A78: 75 | B78: 10412 | C78: 马岭街道办事处 | D78: 1108 | E78: 思源社区 | F78: 03 | G78: 98.00 | H78: 81.67 | I78: 71.87 | J78: 是
A79: 76 | B79: 10413 | C79: 马岭街道办事处 | D79: 1108 | E79: 思源社区 | F79: 03 | G79: 85.00 | H79: 75.67 | I79: 64.27 | J79: 否
A80: 77 | B80: 10414 | C80: 洒金街道办事处 | D80: 1109 | E80: 坝美社区 | F80: 01 | G80: 104.00 | H80: 82.00 | I80: 74.40 | J80: 是
A81: 78 | B81: 10415 | C81: 洒金街道办事处 | D81: 1109 | E81: 坝美社区 | F81: 01 | G81: 99.50 | H81: 76.34 | I81: 70.34 | J81: 否
A82: 79 | B82: 10416 | C82: 洒金街道办事处 | D82: 1109 | E82: 栗坪社区 | F82: 02 | G82: 120.00 | H82: 76.00 | I82: 78.40 | J82: 是
A83: 80 | B83: 10417 | C83: 洒金街道办事处 | D83: 1109 | E83: 栗坪社区 | F83: 02 | G83: 78.50 | H83: 77.67 | I83: 62.47 | J83: 否
A84: 81 | B84: 10418 | C84: 洒金街道办事处 | D84: 1109 | E84: 康平社区 | F84: 03 | G84: 103.50 | H84: 87.67 | I84: 76.47 | J84: 是
A85: 82 | B85: 10419 | C85: 洒金街道办事处 | D85: 1109 | E85: 康平社区 | F85: 03 | G85: 87.50 | H85: 73.00 | I85: 64.20 | J85: 否
A86: 83 | B86: 10501 | C86: 洒金街道办事处 | D86: 1109 | E86: 南兴社区 | F86: 04 | G86: 103.00 | H86: 78.33 | I86: 72.53 | J86: 是
A87: 84 | B87: 10502 | C87: 洒金街道办事处 | D87: 1109 | E87: 南兴社区 | F87: 04 | G87: 90.50 | H87: 77.33 | I87: 67.13 | J87: 否
A88: 85 | B88: 10503 | C88: 顶效街道办事处 | D88: 1110 | E88: 合心社区 | F88: 01 | G88: 66.00 | H88: 71.33 | I88: 54.93 | J88: 是
A89: 86 | B89: 10504 | C89: 顶效街道办事处 | D89: 1110 | E89: 顶效社区 | F89: 02 | G89: 104.50 | H89: 78.33 | I89: 73.13 | J89: 是
A90: 87 | B90: 10505 | C90: 顶效街道办事处 | D90: 1110 | E90: 顶效社区 | F90: 02 | G90: 86.50 | H90: 81.33 | I90: 67.13 | J90: 否
A91: 88 | B91: 10506 | C91: 木陇街道办事处 | D91: 1111 | E91: 木陇社区 | F91: 01 | G91: 96.50 | H91: 75.00 | I91: 68.60 | J91: 是
A92: 89 | B92: 10507 | C92: 木陇街道办事处 | D92: 1111 | E92: 马别社区 | F92: 02 | G92: 106.00 | H92: 79.67 | I92: 74.27 | J92: 是
A93: 90 | B93: 10508 | C93: 木陇街道办事处 | D93: 1111 | E93: 马别社区 | F93: 02 | G93: 88.50 | H93: 75.00 | I93: 65.40 | J93: 否
A94: 91 | B94: 10509 | C94: 木陇街道办事处 | D94: 1111 | E94: 麻山社区 | F94: 03 | G94: 86.00 | H94: 79.00 | I94: 66.00 | J94: 是
A95: 92 | B95: 10510 | C95: 木陇街道办事处 | D95: 1111 | E95: 麻山社区 | F95: 03 | G95: 73.50 | H95: 74.33 | I95: 59.13 | J95: 否
A96: 93 | B96: 10511 | C96: 木陇街道办事处 | D96: 1111 | E96: 王母社区 | F96: 04 | G96: 91.00 | H96: 75.00 | I96: 66.40 | J96: 是
A97: 94 | B97: 10512 | C97: 木陇街道办事处 | D97: 1111 | E97: 王母社区 | F97: 04 | G97: 83.00 | H97: 缺考 | I97: 33.20 | J97: 否
A98: 95 | B98: 10513 | C98: 木陇街道办事处 | D98: 1111 | E98: 大龙潭社区 | F98: 05 | G98: 93.50 | H98: 79.67 | I98: 69.27 | J98: 是
A99: 96 | B99: 10514 | C99: 木陇街道办事处 | D99: 1111 | E99: 大龙潭社区 | F99: 05 | G99: 92.50 | H99: 80.33 | I99: 69.13 | J99: 否
A100: 97 | B100: 10515 | C100: 木陇街道办事处 | D100: 1111 | E100: 新隆社区 | F100: 06 | G100: 105.00 | H100: 70.33 | I100: 70.13 | J100: 是
A101: 98 | B101: 10516 | C101: 木陇街道办事处 | D101: 1111 | E101: 新隆社区 | F101: 06 | G101: 76.00 | H101: 缺考 | I101: 30.40 | J101: 否
A102: 99 | B102: 10518 | C102: 木陇街道办事处 | D102: 1111 | E102: 步马社区 | F102: 07 | G102: 98.00 | H102: 78.33 | I102: =(G102/1.5)*0.6+(H102*0.4) -> 70.53 | J102: 是
A103: 100 | B103: 10517 | C103: 木陇街道办事处 | D103: 1111 | E103: 步马社区 | F103: 07 | G103: 99.00 | H103: 74.33 | I103: =(G103/1.5)*0.6+(H103*0.4) -> 69.33 | J103: 否
A104: 101 | B104: 10519 | C104: 木陇街道办事处 | D104: 1111 | E104: 同源社区 | F104: 08 | G104: 86.50 | H104: 79.33 | I104: =(G104/1.5)*0.6+(H104*0.4) -> 66.33 | J104: 是
A105: 102 | B105: 10520 | C105: 木陇街道办事处 | D105: 1111 | E105: 同源社区 | F105: 08 | G105: 81.00 | H105: 77.00 | I105: =(G105/1.5)*0.6+(H105*0.4) -> 63.20 | J105: 否

Sheet Sheet2 (hidden)
A1: 1101 | B1: 黄草街道办事处 | D1: 1101 | E1: 01 | F1: 北门社区
A2: 1102 | B2: 桔山街道办事处 | D2: 1101 | E2: 02 | F2: 红旗社区
A3: 1103 | B3: 丰都街道办事处 | D3: 1101 | E3: 03 | F3: 红星社区
A4: 1104 | B4: 坪东街道办事处 | D4: 1101 | E4: 04 | F4: 建设社区
A5: 1105 | B5: 兴泰街道办事处 | D5: 1101 | E5: 05 | F5: 街心社区
A6: 1106 | B6: 木贾街道办事处 | D6: 1101 | E6: 06 | F6: 老城社区
A7: 1107 | B7: 下五屯街道办事处 | D7: 1101 | E7: 07 | F7: 盘江社区
A8: 1108 | B8: 马岭街道办事处 | D8: 1101 | E8: 08 | F8: 胜利社区
A9: 1109 | B9: 洒金街道办事处 | D9: 1101 | E9: 09 | F9: 向阳社区
A10: 1110 | B10: 顶效街道办事处 | D10: 1101 | E10: 10 | F10: 兴源社区
A11: 1111 | B11: 木陇街道办事处
D12: 1102 | E12: 01 | F12: 峡谷社区
D13: 1102 | E13: 02 | F13: 富兴社区
D14: 1102 | E14: 03 | F14: 碧云社区
D15: 1102 | E15: 04 | F15: 丰源社区
D16: 1102 | E16: 05 | F16: 金桔社区
D17: 1102 | E17: 06 | F17: 滴水社区
D18: 1102 | E18: 07 | F18: 笔山社区
D19: 1102 | E19: 08 | F19: 新场社区
D20: 1102 | E20: 09 | F20: 双朝社区
D21: 1102 | E21: 10 | F21: 酸枣社区
D22: 1102 | E22: 11 | F22: 桔园社区
D23: 1102 | E23: 12 | F23: 三和社区
D24: 1102 | E24: 13 | F24: 民航社区
D26: 1103 | E26: 01 | F26: 和谐社区
D27: 1103 | E27: 02 | F27: 丰都社区
D28: 1103 | E28: 03 | F28: 永安社区
D30: 1104 | E30: 01 | F30: 新联社区
D31: 1104 | E31: 02 | F31: 坪东社区
D32: 1104 | E32: 03 | F32: 幸福社区
D34: 1105 | E34: 01 | F34: 富民社区
D35: 1105 | E35: 02 | F35: 水库社区
D36: 1105 | E36: 03 | F36: 水新社区
D38: 1106 | E38: 01 | F38: 木贾社区
D39: 1106 | E39: 02 | F39: 东贡社区
D40: 1106 | E40: 03 | F40: 东兴社区
D42: 1107 | E42: 01 | F42: 永康社区
D43: 1107 | E43: 02 | F43: 景家屯社区
D44: 1107 | E44: 03 | F44: 坝佑社区
D45: 1107 | E45: 04 | F45: 科佐屯社区
D46: 1107 | E46: 05 | F46: 庄园社区
D48: 1108 | E48: 01 | F48: 马岭社区
D49: 1108 | E49: 02 | F49: 龙盛社区
D50: 1108 | E50: 03 | F50: 思源社区
D52: 1109 | E52: 01 | F52: 坝美社区
D53: 1109 | E53: 02 | F53: 栗坪社区
D54: 1109 | E54: 03 | F54: 康平社区
D55: 1109 | E55: 04 | F55: 南兴社区
D57: 1110 | E57: 01 | F57: 合心社区
D58: 1110 | E58: 02 | F58: 顶效社区
D60: 1111 | E60: 01 | F60: 木陇社区
D61: 1111 | E61: 02 | F61: 马别社区
D62: 1111 | E62: 03 | F62: 麻山社区
D63: 1111 | E63: 04 | F63: 王母社区
D64: 1111 | E64: 05 | F64: 大龙潭社区
D65: 1111 | E65: 06 | F65: 新隆社区
D66: 1111 | E66: 07 | F66: 步马社区
D67: 1111 | E67: 08 | F67: 同源社区
